fUSD/lending_fUSD_20250623
["ID","MTS","AMOUNT","RATE_DAILY","PERIOD"]
[367148400,1750671056541,-1266.38,0.00026607,3]
[367148401,1750671056550,-4577.7,0.00026607,3]
[367148402,1750671056560,-490.0,0.00026607,3]
[367148403,1750671056569,-770.46,0.00026607,3]
[367148404,1750671056579,-1409.81,0.00026607,3]
[367148405,1750671056588,-1362.36,0.00026607,3]
[367148406,1750671056597,-861.06,0.00026607,3]
[367148407,1750671056607,-8287.4,0.00026607,3]
[367148408,1750671056616,-968.22,0.00026607,3]
[367148409,1750671056626,-490.0,0.00026607,3]
[367148410,1750671056635,-562.9,0.00026607,3]
[367148411,1750671056645,-722.97,0.00026607,3]
[367148412,1750671056655,-1605.74,0.00026607,3]
[367148413,1750671056664,-1832.31,0.00026607,3]
[367148414,1750671056674,-1229.9,0.00026607,3]
[367148415,1750671056683,-490.0,0.00026607,3]
[367148416,1750671056693,-1210.95,0.00026607,3]
[367148417,1750671056702,-1299.1,0.00026607,3]
[367148418,1750671056712,-1087.46,0.00026607,3]
[367148419,1750671056721,-1286.14,0.00026607,3]
[367148420,1750671056731,-490.0,0.00026607,3]
[367148421,1750671056741,-1605.88,0.00026607,3]
[367148422,1750671056750,-3821.2,0.00026607,3]
[367148423,1750671056760,-752.18,0.00026607,3]
[367148424,1750671056769,-490.0,0.00026607,3]
[367148425,1750671056779,-6122.59,0.00026607,3]
[367148426,1750671056788,-1424.95,0.00026607,3]
[367148427,1750671056799,-957.37,0.00026607,3]
[367148428,1750671056808,-1267.93,0.00026607,3]
[367148429,1750671056818,-17037.3840456,0.00026607,2]
[367148430,1750671056828,-936.09,0.00026607,3]
[367148431,1750671056838,-563.52,0.00026607,3]
[367148432,1750671056848,-1430.22,0.00026607,3]
[367148433,1750671056858,-1062.05,0.00026607,3]
[367148434,1750671056867,-3287.6,0.00026607,3]
[367148435,1750671056877,-490.0,0.00026607,3]
[367148436,1750671056886,-4015.02,0.00026607,3]
[367148437,1750671056896,-2640.32,0.00026607,3]
[367148438,1750671056906,-5626.95,0.00026607,3]
[367148439,1750671056915,-500.0,0.00026656,2]
[367148440,1750671056925,-500.0,0.00026656,2]
[367148441,1750671056934,-500.0,0.00026656,2]
[367148442,1750671056944,-500.0,0.00026656,2]
[367148443,1750671056954,-500.0,0.00026656,2]
[367148444,1750671056963,-500.0,0.00026656,2]
[367148445,1750671056973,-500.0,0.00026656,2]
[367148446,1750671056983,-500.0,0.00026656,2]
[367148447,1750671056994,-500.0,0.00026656,2]
[367148448,1750671057003,-500.0,0.00026656,2]
[367148449,1750671057012,-500.0,0.00026656,2]
[367148450,1750671057021,-500.0,0.00026656,2]
[367148451,1750671057031,-500.0,0.00026656,2]
[367148452,1750671057040,-500.0,0.00026656,2]
[367148453,1750671057051,-500.0,0.00026656,2]
[367148454,1750671057061,-500.0,0.00026656,2]
[367148455,1750671057070,-500.0,0.00026656,2]
[367148456,1750671057080,-500.0,0.00026656,2]
[367148457,1750671057089,-500.0,0.00026656,2]
[367148458,1750671057099,-500.0,0.00026656,2]
[367148459,1750671057109,-500.0,0.00026656,2]
[367148460,1750671057118,-500.0,0.00026656,2]
[367148461,1750671057128,-500.0,0.00026656,2]
[367148462,1750671057138,-500.0,0.00026656,2]
[367148463,1750671057148,-500.0,0.00026656,2]
[367148464,1750671057157,-500.0,0.00026656,2]
[367148465,1750671057166,-500.0,0.00026656,2]
[367148466,1750671057176,-500.0,0.00026656,2]
[367148467,1750671057185,-500.0,0.00026656,2]
[367148468,1750671057199,-500.0,0.00026656,2]
[367148469,1750671057209,-500.0,0.00026656,2]
[367148470,1750671057218,-500.0,0.00026656,2]
[367148471,1750671057228,-500.0,0.00026656,2]
[367148472,1750671057237,-500.0,0.00026656,2]
[367148473,1750671057247,-500.0,0.00026656,2]
[367148474,1750671057257,-500.0,0.00026656,2]
[367148475,1750671057266,-500.0,0.00026656,2]
[367148476,1750671057275,-500.0,0.00026656,2]
[367148477,1750671057285,-462.078,0.00026656,2]
[367148478,1750671057294,-297.33,0.00026676,2]
[367148479,1750671057304,-171.10185888,0.00026683,2]
[367148480,1750671057314,-156.0,0.00026695,2]
[367148481,1750671057324,-2000.0,0.000267,2]
[367148482,1750671057439,-1000.0,0.000267,9]
[367148483,1750671057449,-1255.46,0.00026702,3]
[367148484,1750671057458,-2201.56,0.00026702,3]
[367148485,1750671057467,-1491.47,0.00026702,3]
[367148486,1750671057476,-2930.5,0.00026702,3]
[367148487,1750671057486,-1708.16,0.00026702,3]
[367148488,1750671057495,-5907.73,0.00026702,3]
[367148489,1750671057504,-1391.51,0.00026702,3]
[367148490,1750671057513,-575.02,0.00026702,3]
[367148491,1750671057522,-1084.95,0.00026702,3]
[367148492,1750671057531,-1300.29,0.00026702,3]
[367148493,1750671057541,-1536.61,0.00026702,3]
[367148494,1750671057550,-490.0,0.00026706,3]
[367148495,1750671057559,-1224.06,0.00026706,3]
[367148496,1750671057569,-645.55,0.00026706,3]
[367148497,1750671057578,-1390.19,0.00026706,3]
[367148498,1750671057587,-490.0,0.00026706,3]
[367148499,1750671057596,-1689.64,0.00026706,3]
[367148500,1750671057606,-1008.05,0.00026706,3]
[367148501,1750671057615,-11226.73,0.00026706,3]
[367148502,1750671057624,-490.0,0.00026706,3]
[367148503,1750671057634,-878.14,0.00026706,3]
[367148504,1750671057643,-1344.09,0.00026706,3]
[367148505,1750671057652,-964.93,0.00026706,3]
[367148506,1750671057661,-2314.74,0.00026706,3]
[367148507,1750671057671,-490.0,0.00026706,3]
[367148508,1750671057680,-621.6,0.00026706,3]
[367148509,1750671057689,-1288.85,0.00026706,3]
[367148510,1750671057698,-1102.76,0.00026706,3]
[367148511,1750671057708,-513.81,0.00026706,3]
[367148512,1750671057717,-583.03,0.00026706,3]
[367148513,1750671057726,-1946.34,0.00026706,3]
[367148514,1750671057735,-1685.02,0.00026706,3]
[367148515,1750671057745,-942.64,0.00026706,3]
[367148516,1750671057754,-555.39,0.00026706,3]
[367148517,1750671057763,-2108.72,0.00026706,3]
[367148518,1750671057772,-505.66,0.00026706,3]
[367148519,1750671057782,-1117.03,0.00026706,3]
[367148520,1750671057792,-597.77,0.00026706,3]
[367148521,1750671057801,-739.27,0.00026706,3]
[367148522,1750671057810,-1054.61,0.00026706,3]
[367148523,1750671057820,-1245.98,0.00026706,3]
[367148524,1750671057829,-746.89,0.00026706,3]
[367148525,1750671057838,-1188.95,0.00026706,3]
[367148526,1750671057848,-1264.16,0.00026706,3]
[367148527,1750671057858,-991.38,0.00026706,3]
[367148528,1750671057868,-1256.51,0.00026706,3]
[367148529,1750671057877,-1099.57,0.00026706,3]
[367148530,1750671057887,-2170.06,0.00026706,3]
[367148531,1750671057896,-1192.33,0.00026706,3]
[367148532,1750671057906,-490.0,0.00026706,3]
[367148533,1750671057915,-544.36,0.00026706,3]
[367148534,1750671057924,-1114.47,0.00026706,3]
[367148535,1750671057933,-1291.74,0.00026706,3]
[367148536,1750671057943,-490.0,0.00026706,3]
[367148537,1750671057952,-559.15,0.00026706,3]
[367148538,1750671057961,-633.75,0.00026706,3]
[367148539,1750671057970,-1018.46,0.00026706,3]
[367148540,1750671057979,-490.0,0.00026706,3]
[367148541,1750671057988,-1499.34,0.00026706,3]
[367148542,1750671057998,-971.68,0.00026706,3]
[367148543,1750671058007,-744.75,0.00026706,3]
[367148544,1750671058016,-1123.73,0.00026706,3]
[367148545,1750671058026,-1493.13,0.00026706,3]
[367148546,1750671058035,-522.07982135,0.00026706,3]
[367148547,1750671058044,-806.25,0.00026706,3]
[367148548,1750671058053,-893.96,0.00026707,3]
[367148549,1750671058063,-1279.9,0.00026707,3]
[367148550,1750671058072,-1111.65,0.00026707,3]
[367148551,1750671058082,-852.71,0.00026707,3]
[367148552,1750671058091,-490.0,0.00026707,3]
[367148553,1750671058101,-1214.37,0.00026707,3]
[367148554,1750671058110,-490.0,0.00026707,3]
[367148555,1750671058119,-601.1,0.00026707,3]
[367148557,1750671058128,-1230.36,0.00026707,3]
[367148559,1750671058137,-1535.19,0.00026707,3]
[367148560,1750671058146,-1124.34,0.00026707,3]
[367148562,1750671058155,-987.86,0.00026707,3]
[367148564,1750671058165,-1909.97,0.00026707,3]
[367148565,1750671058174,-1871.68,0.00026707,3]
[367148566,1750671058183,-1679.08,0.00026707,3]
[367148567,1750671058192,-3684.48,0.00026707,3]
[367148568,1750671058201,-1110.3,0.00026707,3]
[367148569,1750671058211,-6135.07,0.00026707,3]
[367148570,1750671058220,-1292.11,0.00026707,3]
[367148571,1750671058229,-4348.18,0.00026707,3]
[367148572,1750671058238,-1305.05,0.00026707,3]
[367148573,1750671058248,-4930.46,0.00026707,3]
[367148574,1750671058257,-5411.6,0.00026707,3]
[367148575,1750671058266,-490.0,0.00026707,3]
[367148576,1750671058275,-3052.68,0.00026707,3]
[367148577,1750671058284,-498.89,0.00026707,3]
[367148578,1750671058294,-1243.35,0.00026707,3]
[367148579,1750671058303,-784.78,0.00026707,3]
[367148580,1750671058312,-1542.83,0.00026707,3]
[367148581,1750671058321,-1417.76,0.00026707,3]
[367148582,1750671058330,-1250.85,0.00026707,3]
[367148583,1750671058340,-3787.45,0.00026707,3]
[367148584,1750671058349,-522.67,0.00026707,3]
[367148585,1750671058359,-4663.0,0.00026707,3]
[367148586,1750671058368,-808.5,0.00026707,3]
[367148587,1750671058377,-725.43,0.00026707,3]
[367148588,1750671058386,-490.0,0.00026707,3]
[367148589,1750671058395,-1024.92,0.00026707,3]
[367148590,1750671058404,-1023.63,0.00026707,3]
[367148591,1750671058413,-1229.41,0.00026707,3]
[367148592,1750671058423,-1101.11,0.00026707,3]
[367148593,1750671058432,-205.0,0.00026711,7]
[367148594,1750671058441,-1000.0,0.00026758,2]
[367148595,1750671058450,-1093.58,0.00026767,3]
[367148596,1750671058459,-490.0,0.00026767,3]
[367148597,1750671058469,-1145.93,0.00026767,3]
[367148598,1750671058478,-592.4,0.00026767,3]
[367148599,1750671058487,-791.05,0.00026767,3]
[367148600,1750671058497,-2299.43,0.00026767,3]
[367148601,1750671058506,-876.96,0.00026767,3]
[367148602,1750671058516,-1136.69,0.00026767,3]
[367148603,1750671058525,-1124.98,0.00026767,3]
[367148604,1750671058534,-1139.62,0.00026767,3]
[367148605,1750671058543,-1299.08,0.00026767,3]
[367148606,1750671058552,-23598.15,0.00026767,3]
[367148607,1750671058561,-3594.64,0.00026767,3]
[367148608,1750671058571,-1672.9,0.00026767,3]
[367148609,1750671058580,-2305.21,0.00026767,3]
[367148610,1750671058589,-1263.38,0.00026767,3]
[367148611,1750671058598,-2485.33,0.00026767,3]
[367148612,1750671058607,-5354.1,0.00026767,3]
[367148613,1750671058616,-981.37,0.00026767,3]
[367148614,1750671058625,-500.0,0.00026773,2]
[367148615,1750671058634,-151.0,0.00026773,7]
[367148616,1750671058644,-151.0,0.00026773,7]
[367148617,1750671058653,-610.021123,0.00026773,7]
[367148618,1750671058662,-610.021123,0.00026773,7]
[367148619,1750671058671,-151.0,0.0002678,7]
[367148620,1750671058680,-151.0,0.0002678,7]
[367148621,1750671058690,-151.0,0.0002678,7]
[367148622,1750671058699,-172.871256,0.0002678,7]
[367148623,1750671058708,-151.0,0.0002678,7]
[367148624,1750671058717,-151.0,0.0002678,7]
[367148625,1750671058727,-151.0,0.0002678,7]
[367148627,1750671058736,-3287.893115,0.0002678,7]
[367148629,1750671058745,-39999.32318599,0.00026783,2]
[367148631,1750671058754,-151.0,0.00026783,7]
[367148633,1750671058763,-151.0,0.00026783,7]
[367148635,1750671058773,-152.020867,0.00026783,7]
[367148637,1750671058782,-151.890718,0.00026783,7]
[367148639,1750671058791,-151.0,0.00026783,7]
[367148641,1750671058801,-151.0,0.00026783,7]
[367148643,1750671058810,-151.0,0.00026783,7]
[367148646,1750671058821,-151.0,0.00026783,7]
[367148648,1750671058830,-624.53,0.00026783,3]
[367148650,1750671058839,-151.0,0.00026783,7]
[367148652,1750671058848,-154.268192,0.00026783,7]
[367148654,1750671058857,-151.0,0.00026783,7]
[367148656,1750671058866,-151.0,0.00026783,7]
[367148658,1750671058875,-151.0,0.00026783,7]
[367148659,1750671058883,-151.0,0.00026783,7]
[367148661,1750671058892,-595.02,0.00026783,3]
[367148664,1750671058902,-263.822863,0.00026783,7]
[367148665,1750671058911,-8365.58,0.00026783,3]
[367148667,1750671058920,-227.780122,0.00026783,7]
[367148669,1750671058929,-1843.42,0.00026783,3]
[367148670,1750671058937,-151.0,0.00026783,7]
[367148672,1750671058946,-151.0,0.00026783,7]
[367148674,1750671058955,-1331.92,0.00026783,3]
[367148676,1750671058964,-1251.97,0.00026783,3]
[367148678,1750671058973,-11616.27,0.00026783,3]
[367148679,1750671058982,-151.0,0.00026783,7]
[367148681,1750671058991,-212.735661,0.00026783,7]
[367148683,1750671059001,-1649.92,0.00026783,3]
[367148685,1750671059010,-1478.67,0.00026783,3]
[367148687,1750671059019,-1051.94,0.00026783,3]
[367148689,1750671059028,-2056.47,0.00026783,3]
[367148691,1750671059038,-1241.52,0.00026783,3]
[367148692,1750671059048,-1498.15,0.00026783,3]
[367148693,1750671059058,-610.021123,0.00026783,7]
[367148694,1750671059067,-610.021123,0.00026783,7]
[367148695,1750671059076,-3287.893115,0.00026783,7]
[367148696,1750671059086,-3287.893115,0.00026783,7]
[367148697,1750671059095,-610.021123,0.00026783,7]
[367148698,1750671059104,-610.021123,0.00026783,7]
[367148699,1750671059113,-224106.06274387,0.00026783,2]
[367148700,1750671059554,-1004.9,0.00026783,2]
[367148704,1750671061234,-0.18468298,0.00024481,2]
[367148705,1750671061324,-3714.70421702,0.00024481,2]
[367148706,1750671061334,-151.0,0.00025227,7]
[367148707,1750671061344,-151.0,0.00025511,7]
[367148708,1750671061354,-2277.06282456,0.0002556,2]
[367148709,1750671061590,-9743.06774387,0.0002556,2]
[367148710,1750671061600,-210.440574,0.00025785,7]
[367148711,1750671061610,-1188.0515894,0.00026333,3]
[367148712,1750671062285,-490.0,0.00024788,3]
[367148713,1750671062298,-490.0,0.00025062,3]
[367148714,1750671062309,-490.0,0.00025336,3]
[367148715,1750671062319,-490.0,0.0002561,3]
[367148716,1750671062329,-490.0,0.00025884,3]
[367148717,1750671062340,-490.0,0.00026158,3]
[367148718,1750671062350,-1351.6784106,0.00026333,3]
[367148719,1750671062360,-3287.893115,0.0002649,7]
[367148720,1750671062370,-2539.73,0.00026607,3]
[367148721,1750671062381,-160.15838423,0.00026702,2]
[367148722,1750671062391,-3287.893115,0.0002678,7]
[367148723,1750671062401,-3287.893115,0.00026783,7]
[367148724,1750671062411,-3287.893115,0.00026783,7]
[367148725,1750671062421,-32020.0530728,0.00026783,2]
[367148726,1750671063572,-246.6462,0.00024481,2]
[367148727,1750671063583,-422.3538,0.00024689,3]
[367148728,1750671063595,-458.42669019,0.00024689,3]
[367148729,1750671063702,-33.21950981,0.00024689,3]
[367148730,1750671063711,-466.53232078,0.00024899,2]
[367148735,1750671433140,270.47,0.00013699,2]
[367148736,1750671452572,162.67,0.0002496,120]
[367148744,1750671909218,1617.01715302,0.000273,120]
[367148746,1750671933569,250.0,0.00015,2]
[367148747,1750671935200,300.0,0.00017,2]
[367148756,1750672231979,-270.47,0.00020187,2]
[367148757,1750672231990,-205.0,0.00020267,2]
[367148758,1750672232001,-984.23783706,0.00021441,2]
[367148759,1750672232013,-928.86549934,0.00021441,2]
[367148760,1750672232024,-600.0,0.00021441,2]
[367148761,1750672232035,-145.7250196,0.00021441,2]
[367148762,1750672232045,-205.0,0.00021549,3]
[367148763,1750672232057,-280.44,0.00021777,2]
[367148764,1750672232066,-537.71,0.00021785,2]
[367148765,1750672232074,-200.0,0.00021884,2]
[367148766,1750672232083,-298.1313428,0.00022106,2]
[367148767,1750672232092,-313.61,0.00022157,2]
[367148768,1750672232101,-145.32277318,0.00022182,2]
[367148769,1750672232132,-454.67722682,0.00022182,2]
[367148770,1750672232142,-78.96299915,0.00022183,2]
[367148771,1750672232153,-644.64710964,0.00022183,2]
[367148772,1750672232164,-301.84124808,0.00022183,2]
[367148773,1750672232187,-174.54864313,0.00022183,2]
[367148774,1750672232197,-6540.58,0.00022184,2]
[367148775,1750672232206,-264.0,0.00022205,2]
[367148776,1750672232216,-300.0,0.00022206,2]
[367148777,1750672232226,-300.0,0.00022206,2]
[367148778,1750672232236,-250.0,0.00022206,2]
[367148779,1750672232245,-250.0,0.00022206,2]
[367148780,1750672232255,-2751.0,0.00022252,2]
[367148781,1750672232264,-3279.2,0.00022252,2]
[367148782,1750672232275,-300.0,0.00022399,2]
[367148783,1750672232284,-298.1313428,0.0002244,2]
[367148784,1750672232295,-150.0,0.0002271,2]
[367148785,1750672232305,-150.0,0.0002271,2]
[367148787,1750672232314,-159.57839096,0.00022773,2]
[367148789,1750672232324,-298.1313428,0.00022773,2]
[367148791,1750672232334,-205.0,0.00022831,5]
[367148793,1750672232344,-5446.62532203,0.00022832,2]
[367148795,1750672232353,-688.0,0.00022841,2]
[367148797,1750672232362,-500.0,0.00022841,2]
[367148799,1750672232372,-235.43239541,0.00022841,2]
[367148801,1750672232381,-161.23712316,0.00022841,2]
[367148803,1750672232390,-500.0,0.00022841,2]
[367148805,1750672232399,-500.0,0.00022841,2]
[367148807,1750672232408,-220.33015141,0.00022841,2]
[367148809,1750672232417,-500.0,0.00022841,2]
[367148811,1750672232426,-20818.11481718,0.00022842,2]
[367148814,1750672232437,-674.35267891,0.00022842,2]
[367148816,1750672232448,-2728.04560496,0.00022842,2]
[367148818,1750672232462,-370.04022624,0.00022842,2]
[367148820,1750672232473,-517.70502891,0.00022842,2]
[367148849,1750672232670,-312.13489786,0.00022842,2]
[367148851,1750672232681,-269208.38674594,0.00022842,2]
[367148853,1750672232691,-2005.68,0.00022873,2]
[367148855,1750672232700,-700.37,0.00022895,2]
[367148857,1750672232710,-172.788639,0.00022896,2]
[367148859,1750672232719,-648.30591,0.00022896,2]
[367148862,1750672232729,-167.0,0.00022904,2]
[367148863,1750672232739,-7982.72,0.00022928,2]
[367148865,1750672232750,-233.9426728,0.00023,8]
[367148867,1750672232760,-5563.0,0.00023,5]
[367148869,1750672232769,-6010.06528426,0.00023137,2]
[367148871,1750672232778,-162.04,0.00023138,2]
[367148872,1750672232788,-7387.63,0.00023154,2]
[367148874,1750672232797,-500.0,0.00023167,2]
[367148876,1750672232806,-8219.18,0.00023237,2]
[367148878,1750672232816,-233.94267258,0.00023348,9]
[367148880,1750672232825,-6010.06528421,0.0002342,2]
[367148882,1750672232834,-2228.39,0.00023531,2]
[367148884,1750672232843,-7142.856,0.00023537,2]
[367148885,1750672232853,-207.4,0.00023537,2]
[367148886,1750672232862,-400.71,0.00023562,2]
[367148887,1750672232872,-770.52,0.00023582,2]
[367148888,1750672232881,-7407.141672,0.00023592,2]
[367148889,1750672232890,-156.71,0.00023642,2]
[367148890,1750672232899,-7681.20591386,0.00023647,2]
[367148891,1750672232908,-151.0,0.00023653,2]
[367148892,1750672232917,-151.0,0.00023653,2]
[367148893,1750672232926,-151.0,0.00023653,2]
[367148894,1750672232936,-151.0,0.00023653,2]
[367148895,1750672232945,-500.0,0.00023653,2]
[367148896,1750672232953,-151.0,0.00023653,2]
[367148897,1750672232963,-500.0,0.00023653,2]
[367148898,1750672232972,-151.0,0.00023653,2]
[367148899,1750672232981,-500.0,0.00023653,2]
[367148900,1750672232990,-151.0,0.00023653,2]
[367148901,1750672233004,-500.0,0.00023653,2]
[367148902,1750672233014,-500.0,0.00023653,2]
[367148903,1750672233023,-151.0,0.00023653,2]
[367148904,1750672233033,-500.0,0.00023653,2]
[367148905,1750672233042,-151.0,0.00023653,2]
[367148906,1750672233052,-500.0,0.00023653,2]
[367148907,1750672233062,-500.0,0.00023653,2]
[367148908,1750672233071,-500.0,0.00023653,2]
[367148909,1750672233080,-205.35975815,0.00023653,2]
[367148910,1750672233092,-54.63078994,0.00023653,2]
[367148911,1750672233102,-500.0,0.00023653,2]
[367148912,1750672233111,-500.0,0.00023653,2]
[367148913,1750672233120,-151.0,0.00023653,2]
[367148914,1750672233129,-500.0,0.00023653,2]
[367148915,1750672233139,-500.0,0.00023653,2]
[367148916,1750672233148,-500.0,0.00023653,2]
[367148917,1750672233157,-500.0,0.00023653,2]
[367148918,1750672233167,-151.0,0.00023653,2]
[367148919,1750672233176,-500.0,0.00023653,2]
[367148920,1750672233186,-500.0,0.00023653,2]
[367148921,1750672233197,-500.0,0.00023653,2]
[367148922,1750672233207,-151.0,0.00023653,2]
[367148923,1750672233216,-500.0,0.00023653,2]
[367148924,1750672233226,-500.0,0.00023653,2]
[367148925,1750672233235,-500.0,0.00023653,2]
[367148926,1750672233245,-151.0,0.00023653,2]
[367148927,1750672233254,-500.0,0.00023653,2]
[367148928,1750672233263,-500.0,0.00023653,2]
[367148929,1750672233272,-151.0,0.00023653,2]
[367148930,1750672233282,-500.0,0.00023653,2]
[367148931,1750672233291,-1000.0,0.00023653,2]
[367148932,1750672233302,-500.0,0.00023653,2]
[367148933,1750672233311,-151.0,0.00023653,2]
[367148934,1750672233320,-500.0,0.00023653,2]
[367148935,1750672233330,-1000.0,0.00023653,2]
[367148936,1750672233339,-500.0,0.00023653,2]
[367148937,1750672233348,-500.0,0.00023653,2]
[367148938,1750672233358,-151.0,0.00023653,2]
[367148939,1750672233367,-500.0,0.00023653,2]
[367148940,1750672233377,-500.0,0.00023653,2]
[367148941,1750672233386,-1000.0,0.00023653,2]
[367148942,1750672233396,-500.0,0.00023653,2]
[367148943,1750672233405,-151.0,0.00023653,2]
[367148944,1750672233415,-557.58078967,0.00023653,2]
[367148945,1750672233425,-1000.0,0.00023653,2]
[367148946,1750672233435,-151.0,0.00023653,2]
[367148947,1750672233444,-500.0,0.00023653,2]
[367148948,1750672233454,-1000.0,0.00023653,2]
[367148949,1750672233464,-151.0,0.00023653,2]
[367148950,1750672233474,-1000.0,0.00023653,2]
[367148951,1750672233483,-1000.0,0.00023653,2]
[367148952,1750672233493,-151.0,0.00023653,2]
[367148953,1750672233503,-500.0,0.00023653,2]
[367148954,1750672233512,-151.0,0.00023653,2]
[367148955,1750672233522,-151.0,0.00023653,2]
[367148956,1750672233531,-274.31503645,0.00023653,2]
[367148957,1750672233541,-668.65185757,0.00023653,2]
[367148958,1750672233550,-151.0,0.00023653,2]
[367148959,1750672233561,-151.0,0.00023653,2]
[367148960,1750672233570,-151.0,0.00023653,2]
[367148961,1750672233580,-151.0,0.00023653,2]
[367148962,1750672233590,-151.0,0.00023653,2]
[367148963,1750672233600,-151.0,0.00023653,2]
[367148964,1750672233610,-151.0,0.00023653,2]
[367148965,1750672233620,-151.0,0.00023653,2]
[367148966,1750672233629,-151.0,0.00023653,2]
[367148967,1750672233638,-151.0,0.00023653,2]
[367148968,1750672233647,-151.0,0.00023653,2]
[367148969,1750672233660,-151.0,0.00023653,2]
[367148970,1750672233669,-151.0,0.00023653,2]
[367148971,1750672233678,-151.0,0.00023653,2]
[367148972,1750672233688,-151.0,0.00023653,2]
[367148973,1750672233699,-151.0,0.00023653,2]
[367148974,1750672233709,-151.0,0.00023653,2]
[367148975,1750672233718,-151.0,0.00023653,2]
[367148976,1750672233729,-151.0,0.00023653,2]
[367148977,1750672233740,-151.0,0.00023653,2]
[367148978,1750672233750,-15714.9,0.00023667,2]
[367148979,1750672233760,-7965.41053268,0.00023702,2]
[367148980,1750672233769,-6010.06528421,0.00023703,2]
[367148981,1750672233779,-151.0,0.00023708,2]
[367148982,1750672233789,-500.0,0.00023715,2]
[367148983,1750672233798,-2413.65,0.00023721,2]
[367148984,1750672233809,-720.0,0.00023746,2]
[367148985,1750672233819,-8260.13072239,0.00023757,2]
[367148986,1750672233830,-154.21876069,0.00023763,2]
[367148987,1750672233840,-233.94267258,0.00023797,9]
[367148988,1750672233849,-2218.84284517,0.00023812,2]
[367148989,1750672233859,-163.31,0.00023836,2]
[367148990,1750672233869,-666.0,0.00023957,2]
[367148991,1750672233879,-6010.06528421,0.00023986,2]
[367148992,1750672233889,-158.24,0.00024,2]
[367148993,1750672233898,-205.0,0.00024112,7]
[367148994,1750672233908,-1680.0,0.00024214,2]
[367148995,1750672233919,-233.94267258,0.00024245,10]
[367148996,1750672233929,-6010.06528421,0.00024269,2]
[367148997,1750672233939,-420.0,0.0002433,2]
[367148998,1750672233951,-586.0,0.00024387,2]
[367148999,1750672233961,-842.4317,0.00024457,2]
[367149000,1750672233970,-2086.6688,0.00024457,2]
[367149001,1750672233980,-1000.0,0.00024485,2]
[367149002,1750672233990,-2500.0,0.00024485,2]
[367149003,1750672233999,-500.0,0.00024488,2]
[367149004,1750672234009,-561.3475015,0.00024497,4]
[367149005,1750672234019,-6010.06528421,0.00024553,2]
[367149006,1750672234029,-36147.7929,0.00024557,2]
[367149007,1750672234045,-1000.0,0.00024557,2]
[367149008,1750672234056,-170.37466406,0.00024557,2]
[367149009,1750672234065,-226.0,0.0002457,2]
[367149010,1750672234075,-145918.8588,0.00024585,2]
[367149011,1750672234085,-834.59255148,0.00024624,2]
[367149012,1750672234095,-1246.0,0.0002463,2]
[367149013,1750672234105,-586.0,0.00024656,2]
[367149014,1750672234116,-490.0,0.00024657,2]
[367149015,1750672234126,-490.0,0.00024657,2]
[367149016,1750672234137,-490.0,0.00024657,2]
[367149017,1750672234147,-764.55,0.00024657,2]
[367149018,1750672234158,-490.0,0.00024657,2]
[367149019,1750672234167,-490.0,0.00024657,2]
[367149020,1750672234178,-573.02,0.00024657,2]
[367149021,1750672234188,-490.0,0.00024657,2]